[Event "*** Titled Tuesday Blitz"]
[Site "Chess.com"]
[Date "2018.08.07"]
[Round "6"]
[White "BlackBoarder"]
[Black "ChrisTool2"]
[Result "1-0"]
[WhiteElo "2388"]
[BlackElo "2246"]
[TimeControl "180+2"]
[EndTime "14:17:29 PDT"]
[Termination "BlackBoarder won on time"]

1. e4 {[%clk 0:03:01.2]} 1... c5 {[%clk 0:03:00.2]} 2. Nf3 {[%clk 0:03:01.7]}
2... e6 {[%clk 0:03:00.6]} 3. c3 {[%clk 0:03:02.7]} 3... Nf6 {[%clk 0:03:00.2]}
4. e5 {[%clk 0:03:03.8]} 4... Nd5 {[%clk 0:02:59.5]} 5. d4 {[%clk 0:03:04.7]}
5... cxd4 {[%clk 0:03:00.4]} 6. cxd4 {[%clk 0:03:06.6]} 6... d6 {[%clk
0:02:59.5]} 7. a3 {[%clk 0:03:07.7]} 7... Be7 {[%clk 0:02:53.1]} 8. Bd3 {[%clk
0:03:08.7]} 8... Nc6 {[%clk 0:02:47.4]} 9. O-O {[%clk 0:03:09.6]} 9... O-O
{[%clk 0:02:45.9]} 10. Qe2 {[%clk 0:03:10.4]} 10... dxe5 {[%clk 0:02:42.7]} 11.
dxe5 {[%clk 0:03:11.3]} 11... Qa5 {[%clk 0:02:37.3]} 12. Bd2 {[%clk 0:03:07.8]}
12... Qa4 {[%clk 0:02:22.6]} 13. Nc3 {[%clk 0:03:08]} 13... Nxc3 {[%clk
0:02:20.1]} 14. Bxc3 {[%clk 0:03:09.9]} 14... Bd7 {[%clk 0:01:59.3]} 15. Rfd1
{[%clk 0:03:10.7]} 15... Rfd8 {[%clk 0:01:50.5]} 16. Bc2 {[%clk 0:03:08.8]}
16... Qg4 {[%clk 0:01:45.5]} 17. h3 {[%clk 0:03:07.1]} 17... Qh5 {[%clk
0:01:45.1]} 18. Rd2 {[%clk 0:03:07.2]} 18... Be8 {[%clk 0:01:22.2]} 19. Rad1
{[%clk 0:03:06.5]} 19... a6 {[%clk 0:01:13.5]} 20. Qe4 {[%clk 0:03:01.3]} 20...
Rxd2 {[%clk 0:01:08]} 21. Rxd2 {[%clk 0:03:02.5]} 21... Rd8 {[%clk 0:01:07.7]}
22. Rxd8 {[%clk 0:03:03.4]} 22... Nxd8 {[%clk 0:01:06.1]} 23. Kh2 {[%clk
0:02:59.4]} 23... Bc6 {[%clk 0:01:03.9]} 24. Qg4 {[%clk 0:02:43.4]} 24... Bxf3
{[%clk 0:00:54.3]} 25. gxf3 {[%clk 0:02:44.4]} 25... Qh4 {[%clk 0:00:49.4]} 26.
Kg2 {[%clk 0:02:39.9]} 26... h5 {[%clk 0:00:41.8]} 27. Qxh4 {[%clk 0:02:13.5]}
27... Bxh4 {[%clk 0:00:43.7]} 28. Be4 {[%clk 0:02:14.8]} 28... Kf8 {[%clk
0:00:32.6]} 29. f4 {[%clk 0:02:11.4]} 29... g6 {[%clk 0:00:29.9]} 30. Kf3 {[%clk
0:02:12.2]} 30... Ke8 {[%clk 0:00:30.8]} 31. Ke3 {[%clk 0:02:10]} 31... Kd7
{[%clk 0:00:31.7]} 32. Bd4 {[%clk 0:01:57.1]} 32... Nc6 {[%clk 0:00:29.3]} 33.
Bb6 {[%clk 0:01:57.6]} 33... Kc8 {[%clk 0:00:20.2]} 34. Kd3 {[%clk 0:01:52.2]}
34... Ne7 {[%clk 0:00:17.8]} 35. Kc4 {[%clk 0:01:51.1]} 35... Nf5 {[%clk
0:00:11.1]} 36. b4 {[%clk 0:01:51.6]} 36... Be7 {[%clk 0:00:07.1]} 37. a4 {[%clk
0:01:50]} 37... Bh4 {[%clk 0:00:07.8]} 38. b5 {[%clk 0:01:36.9]} 38... axb5+
{[%clk 0:00:07.8]} 39. Kxb5 {[%clk 0:01:38.8]} 39... Ne7 {[%clk 0:00:08.6]} 40.
Be3 {[%clk 0:01:29.8]} 40... Ng8 {[%clk 0:00:08]} 41. Kb6 {[%clk 0:01:29]} 41...
Bd8+ {[%clk 0:00:07.7]} 42. Ka7 {[%clk 0:01:28.4]} 42... Ne7 {[%clk 0:00:03.7]}
43. Bxb7+ {[%clk 0:01:29]} 43... Kd7 {[%clk 0:00:04.4]} 44. Bb6 {[%clk 0:01:22]}
44... Nd5 {[%clk 0:00:03.1]} 45. Bxd8 {[%clk 0:01:18.4]} 45... Kxd8 {[%clk
0:00:02.7]} 46. Kb8 {[%clk 0:01:08]} 1-0

[Event "*** Titled Tuesday Blitz"]
[Site "Chess.com"]
[Date "2018.08.07"]
[Round "6"]
[White "Raja3401"]
[Black "Keranke"]
[Result "1-0"]
[WhiteElo "2631"]
[BlackElo "2816"]
[TimeControl "180+2"]
[EndTime "14:17:39 PDT"]
[Termination "Raja3401 won by resignation"]

1. e4 {[%clk 0:03:01.9]} 1... g6 {[%clk 0:03:01]} 2. d4 {[%clk 0:03:02.1]} 2...
Bg7 {[%clk 0:03:01.9]} 3. Nf3 {[%clk 0:03:03.1]} 3... d6 {[%clk 0:03:03]} 4. Nc3
{[%clk 0:03:02.7]} 4... Nf6 {[%clk 0:03:04]} 5. Be2 {[%clk 0:03:02.5]} 5... O-O
{[%clk 0:03:05.4]} 6. O-O {[%clk 0:03:01.8]} 6... c6 {[%clk 0:03:04.5]} 7. a4
{[%clk 0:03:02]} 7... Qc7 {[%clk 0:03:04.2]} 8. Be3 {[%clk 0:03:01.1]} 8... e5
{[%clk 0:03:05.1]} 9. dxe5 {[%clk 0:02:59.8]} 9... dxe5 {[%clk 0:03:07]} 10. h3
{[%clk 0:02:52.9]} 10... Rd8 {[%clk 0:03:06.7]} 11. Qc1 {[%clk 0:02:51.5]} 11...
a5 {[%clk 0:03:02.9]} 12. Bh6 {[%clk 0:02:44.8]} 12... Nbd7 {[%clk 0:02:59.3]}
13. Rd1 {[%clk 0:02:43.9]} 13... Re8 {[%clk 0:02:52]} 14. Qg5 {[%clk 0:02:43.7]}
14... Nc5 {[%clk 0:02:45.1]} 15. Bxg7 {[%clk 0:02:19.9]} 15... Kxg7 {[%clk
0:02:47]} 16. Qe3 {[%clk 0:02:20]} 16... Ne6 {[%clk 0:02:42.9]} 17. g3 {[%clk
0:02:19.4]} 17... Qe7 {[%clk 0:02:24.8]} 18. Nxe5 {[%clk 0:02:06.2]} 18... Nc5
{[%clk 0:02:25.4]} 19. Nc4 {[%clk 0:02:07]} 19... Ncxe4 {[%clk 0:02:12.6]} 20.
Nxe4 {[%clk 0:01:47]} 20... Qxe4 {[%clk 0:02:14.5]} 21. Qxe4 {[%clk 0:01:39.3]}
21... Nxe4 {[%clk 0:02:16.4]} 22. Bd3 {[%clk 0:01:11.2]} 22... Bxh3 {[%clk
0:02:06.3]} 23. Re1 {[%clk 0:01:07.6]} 23... Nf6 {[%clk 0:01:49.5]} 24. f3
{[%clk 0:01:02.6]} 24... Be6 {[%clk 0:01:48.8]} 25. Nb6 {[%clk 0:01:03.2]} 25...
Rad8 {[%clk 0:01:48.2]} 26. Re5 {[%clk 0:01:04.1]} 26... Nd5 {[%clk 0:01:48.2]}
27. Nc4 {[%clk 0:01:04.4]} 27... Nb4 {[%clk 0:01:33.8]} 28. Nxa5 {[%clk
0:01:04.9]} 28... b6 {[%clk 0:01:34.6]} 29. Nc4 {[%clk 0:01:02.7]} 29... Nxd3
{[%clk 0:01:34.6]} 30. cxd3 {[%clk 0:01:03.8]} 30... Rxd3 {[%clk 0:01:36.1]} 31.
Nxb6 {[%clk 0:01:05.1]} 31... Rxf3 {[%clk 0:01:36.8]} 32. Kg2 {[%clk 0:01:02.6]}
32... Rb3 {[%clk 0:01:35]} 33. a5 {[%clk 0:01:00.2]} 33... Bh3+ {[%clk
0:01:26.5]} 34. Kxh3 {[%clk 0:01:00.7]} 34... Rxe5 {[%clk 0:01:28.4]} 35. Nc4
{[%clk 0:01:00.1]} 35... Re7 {[%clk 0:01:02.3]} 36. Rd1 {[%clk 0:00:56.5]} 36...
Rb4 {[%clk 0:01:00.4]} 37. Rc1 {[%clk 0:00:57.8]} 37... Re4 {[%clk 0:00:48.1]}
38. Nd6 {[%clk 0:00:58.3]} 38... Re2 {[%clk 0:00:46.6]} 39. Rxc6 {[%clk
0:00:57.4]} 39... Rbxb2 {[%clk 0:00:41.3]} 40. Kg4 {[%clk 0:00:58.6]} 40... Re6
{[%clk 0:00:39.1]} 41. a6 {[%clk 0:00:57.5]} 41... Ra2 {[%clk 0:00:40.3]} 42.
Kf4 {[%clk 0:00:56.1]} 42... Ra4+ {[%clk 0:00:40.8]} 43. Kf3 {[%clk 0:00:57.1]}
43... h5 {[%clk 0:00:41.1]} 44. Rb6 {[%clk 0:00:51.5]} 44... Rd4 {[%clk
0:00:37.5]} 45. a7 {[%clk 0:00:51.4]} 45... Ra4 {[%clk 0:00:38.6]} 46. Ne8+
{[%clk 0:00:48.2]} 46... Rxe8 {[%clk 0:00:39.1]} 47. Rb8 {[%clk 0:00:49.8]}
47... Ra3+ {[%clk 0:00:38.5]} 48. Kf2 {[%clk 0:00:50.1]} 48... Ree3 {[%clk
0:00:35.9]} 49. a8=Q {[%clk 0:00:50.1]} 49... Rf3+ {[%clk 0:00:37.3]} 50. Qxf3
{[%clk 0:00:49.1]} 1-0

[Event "*** Titled Tuesday Blitz"]
[Site "Chess.com"]
[Date "2018.08.07"]
[Round "6"]
[White "dmosesov"]
[Black "ZoltanChef"]
[Result "1-0"]
[WhiteElo "2268"]
[BlackElo "2201"]
[TimeControl "180+2"]
[EndTime "14:17:40 PDT"]
[Termination "dmosesov won by checkmate"]

1. e4 {[%clk 0:03:01.9]} 1... c5 {[%clk 0:02:58.9]} 2. Nf3 {[%clk 0:03:01]} 2...
d6 {[%clk 0:02:59.9]} 3. Bb5+ {[%clk 0:02:56]} 3... Bd7 {[%clk 0:03:00.1]} 4.
Bxd7+ {[%clk 0:02:56.6]} 4... Qxd7 {[%clk 0:03:01.8]} 5. O-O {[%clk 0:02:57.4]}
5... Nc6 {[%clk 0:03:02.3]} 6. c3 {[%clk 0:02:58.2]} 6... Nf6 {[%clk 0:03:00.7]}
7. Re1 {[%clk 0:02:59.4]} 7... g6 {[%clk 0:02:57.7]} 8. d4 {[%clk 0:02:59.9]}
8... cxd4 {[%clk 0:02:56.5]} 9. cxd4 {[%clk 0:03:01.8]} 9... Bg7 {[%clk
0:02:57.8]} 10. Nc3 {[%clk 0:03:02.3]} 10... O-O {[%clk 0:02:58.3]} 11. Bg5
{[%clk 0:03:02.9]} 11... Rfd8 {[%clk 0:02:51.6]} 12. Qd2 {[%clk 0:03:02.9]}
12... Rac8 {[%clk 0:02:49.9]} 13. Rad1 {[%clk 0:03:03]} 13... a6 {[%clk
0:02:39.9]} 14. Nd5 {[%clk 0:02:52.7]} 14... Rb8 {[%clk 0:02:12.5]} 15. Nxf6+
{[%clk 0:02:37]} 15... exf6 {[%clk 0:02:12.9]} 16. Bh6 {[%clk 0:02:37.8]} 16...
Re8 {[%clk 0:02:12.8]} 17. Bxg7 {[%clk 0:02:36.3]} 17... Kxg7 {[%clk 0:02:14.5]}
18. h3 {[%clk 0:02:37.7]} 18... Re7 {[%clk 0:02:12.6]} 19. d5 {[%clk 0:02:12.5]}
19... Ne5 {[%clk 0:02:09.4]} 20. Nd4 {[%clk 0:02:12.2]} 20... Rc8 {[%clk
0:02:06.4]} 21. b3 {[%clk 0:02:11.8]} 21... Qe8 {[%clk 0:02:02.9]} 22. Qb4
{[%clk 0:01:59.3]} 22... Rc5 {[%clk 0:01:51.7]} 23. f4 {[%clk 0:01:38.6]} 23...
Nd7 {[%clk 0:01:51.6]} 24. Qxb7 {[%clk 0:01:36.5]} 24... Nb6 {[%clk 0:01:35.2]}
25. Qxb6 {[%clk 0:01:34.1]} 25... Rxe4 {[%clk 0:01:24.3]} 26. Rxe4 {[%clk
0:01:32.1]} 26... Qxe4 {[%clk 0:01:24.2]} 27. Nf3 {[%clk 0:00:37.4]} 27... Qe3+
{[%clk 0:01:10.9]} 28. Kh1 {[%clk 0:00:37.1]} 28... Qxf4 {[%clk 0:01:11.6]} 29.
Re1 {[%clk 0:00:32.2]} 29... Rc3 {[%clk 0:01:06.9]} 30. Qf2 {[%clk 0:00:24]}
30... Rd3 {[%clk 0:01:05.2]} 31. Qe2 {[%clk 0:00:21.5]} 31... Rxd5 {[%clk
0:01:01.3]} 32. Qe4 {[%clk 0:00:22.6]} 32... Qxe4 {[%clk 0:00:55.1]} 33. Rxe4
{[%clk 0:00:24.5]} 33... f5 {[%clk 0:00:53.6]} 34. Rd4 {[%clk 0:00:23.1]} 34...
Rxd4 {[%clk 0:00:53.3]} 35. Nxd4 {[%clk 0:00:25]} 35... Kf6 {[%clk 0:00:53.9]}
36. Kg1 {[%clk 0:00:23.4]} 36... Ke5 {[%clk 0:00:55.3]} 37. Nc6+ {[%clk
0:00:24.7]} 37... Ke4 {[%clk 0:00:52.9]} 38. Kf2 {[%clk 0:00:25.1]} 38... Kd3
{[%clk 0:00:50]} 39. Nb4+ {[%clk 0:00:25.4]} 39... Kc3 {[%clk 0:00:50]} 40. Nxa6
{[%clk 0:00:26.6]} 40... Kb2 {[%clk 0:00:51.6]} 41. b4 {[%clk 0:00:27.8]} 41...
Kxa2 {[%clk 0:00:51.2]} 42. b5 {[%clk 0:00:29.1]} 42... d5 {[%clk 0:00:52.8]}
43. b6 {[%clk 0:00:30.5]} 43... d4 {[%clk 0:00:53.7]} 44. b7 {[%clk 0:00:31.6]}
44... d3 {[%clk 0:00:52]} 45. Ke3 {[%clk 0:00:32.8]} 45... Kb2 {[%clk
0:00:52.1]} 46. b8=Q+ {[%clk 0:00:33.7]} 46... Kc2 {[%clk 0:00:52.6]} 47. Nb4+
{[%clk 0:00:34.4]} 47... Kd1 {[%clk 0:00:53.6]} 48. Nxd3 {[%clk 0:00:34.5]}
48... f4+ {[%clk 0:00:55.5]} 49. Qxf4 {[%clk 0:00:34.8]} 49... f5 {[%clk
0:00:56.4]} 50. Qa4# {[%clk 0:00:35.6]} 1-0

[Event "*** Titled Tuesday Blitz"]
[Site "Chess.com"]
[Date "2018.08.07"]
[Round "6"]
[White "juniortay"]
[Black "Chakraborty-ARZ"]
[Result "0-1"]
[WhiteElo "2404"]
[BlackElo "2434"]
[TimeControl "180+2"]
[EndTime "14:17:49 PDT"]
[Termination "Chakraborty-ARZ won on time"]

1. e4 {[%clk 0:03:01.9]} 1... c6 {[%clk 0:03:01]} 2. Nf3 {[%clk 0:03:02.4]} 2...
d5 {[%clk 0:03:02.4]} 3. exd5 {[%clk 0:03:04.3]} 3... cxd5 {[%clk 0:03:04.3]} 4.
Ne5 {[%clk 0:03:05.7]} 4... Nf6 {[%clk 0:02:58.9]} 5. d4 {[%clk 0:03:06.8]} 5...
Bf5 {[%clk 0:02:54.5]} 6. Qf3 {[%clk 0:03:04.2]} 6... e6 {[%clk 0:02:54.1]} 7.
Bb5+ {[%clk 0:03:04.1]} 7... Nbd7 {[%clk 0:02:54.5]} 8. g4 {[%clk 0:03:02.4]}
8... Be4 {[%clk 0:02:54.9]} 9. Bxd7+ {[%clk 0:03:02.8]} 9... Qxd7 {[%clk
0:02:53.2]} 10. Qxe4 {[%clk 0:02:15.4]} 10... Nxe4 {[%clk 0:02:46.2]} 11. Nxd7
{[%clk 0:02:15.4]} 11... Kxd7 {[%clk 0:02:48.1]} 12. Be3 {[%clk 0:02:07.6]}
12... h5 {[%clk 0:02:47.7]} 13. g5 {[%clk 0:02:03.6]} 13... h4 {[%clk 0:02:46]}
14. Nd2 {[%clk 0:02:02.8]} 14... Nd6 {[%clk 0:02:45.3]} 15. Ke2 {[%clk
0:01:52.3]} 15... Nf5 {[%clk 0:02:46.3]} 16. Rhg1 {[%clk 0:01:51]} 16... Rc8
{[%clk 0:02:45.4]} 17. Rac1 {[%clk 0:01:50.4]} 17... Bd6 {[%clk 0:02:43.1]} 18.
h3 {[%clk 0:01:49.5]} 18... b5 {[%clk 0:02:32.9]} 19. Rg4 {[%clk 0:01:45]} 19...
a5 {[%clk 0:02:30.7]} 20. Kd3 {[%clk 0:01:17.9]} 20... a4 {[%clk 0:02:26.4]} 21.
c3 {[%clk 0:01:12]} 21... Rc6 {[%clk 0:02:19]} 22. a3 {[%clk 0:01:11.5]} 22...
b4 {[%clk 0:02:12.5]} 23. axb4 {[%clk 0:01:10]} 23... Bxb4 {[%clk 0:02:13.7]}
24. Ra1 {[%clk 0:01:11.3]} 24... Bd6 {[%clk 0:01:56.4]} 25. Rxa4 {[%clk
0:01:12]} 25... Rb8 {[%clk 0:01:56.5]} 26. b4 {[%clk 0:01:04.8]} 26... Rbc8
{[%clk 0:01:57.3]} 27. Ra3 {[%clk 0:01:03.8]} 27... e5 {[%clk 0:01:51.4]} 28.
Rg1 {[%clk 0:00:36.1]} 28... e4+ {[%clk 0:01:47.7]} 29. Nxe4 {[%clk 0:00:27]}
29... dxe4+ {[%clk 0:01:49.6]} 30. Kxe4 {[%clk 0:00:28.4]} 30... g6 {[%clk
0:01:46.9]} 31. Bd2 {[%clk 0:00:28.7]} 31... Rc4 {[%clk 0:01:21.4]} 32. Kd3
{[%clk 0:00:27.9]} 32... R4c7 {[%clk 0:01:19.5]} 33. Ra6 {[%clk 0:00:25.9]}
33... Rc6 {[%clk 0:01:11.2]} 34. Rga1 {[%clk 0:00:24.2]} 34... R6c7 {[%clk
0:00:57.7]} 35. b5 {[%clk 0:00:24.7]} 35... Bf8 {[%clk 0:00:46.7]} 36. b6 {[%clk
0:00:23.2]} 36... Rb7 {[%clk 0:00:45.7]} 37. c4 {[%clk 0:00:21.3]} 37... Bg7
{[%clk 0:00:19.5]} 38. d5 {[%clk 0:00:17.9]} 38... Bxa1 {[%clk 0:00:19.7]} 39.
Bf4 {[%clk 0:00:15.7]} 39... Bd4 {[%clk 0:00:18.5]} 0-1

[Event "*** Titled Tuesday Blitz"]
[Site "Chess.com"]
[Date "2018.08.07"]
[Round "6"]
[White "JoakimVonAnd"]
[Black "saraswathii"]
[Result "0-1"]
[WhiteElo "2373"]
[BlackElo "2295"]
[TimeControl "180+2"]
[EndTime "14:18:19 PDT"]
[Termination "saraswathii won by resignation"]

1. d4 {[%clk 0:03:01.9]} 1... Nc6 {[%clk 0:02:59.9]} 2. Nf3 {[%clk 0:03:01.4]}
2... d5 {[%clk 0:03:00.2]} 3. Bf4 {[%clk 0:03:01.3]} 3... Bf5 {[%clk 0:02:56.9]}
4. e3 {[%clk 0:02:58]} 4... a6 {[%clk 0:02:53.8]} 5. Bd3 {[%clk 0:02:55.6]} 5...
Bg6 {[%clk 0:02:51.3]} 6. O-O {[%clk 0:02:54.4]} 6... Nf6 {[%clk 0:02:51.4]} 7.
c4 {[%clk 0:02:53.5]} 7... e6 {[%clk 0:02:51.6]} 8. Nc3 {[%clk 0:02:54.2]} 8...
Be7 {[%clk 0:02:47.5]} 9. Rc1 {[%clk 0:02:50.2]} 9... O-O {[%clk 0:02:46.9]} 10.
Qe2 {[%clk 0:02:49.4]} 10... Ne4 {[%clk 0:02:44.4]} 11. Bxe4 {[%clk 0:02:31.1]}
11... dxe4 {[%clk 0:02:25.1]} 12. Nd2 {[%clk 0:02:26.8]} 12... f5 {[%clk
0:02:22.9]} 13. d5 {[%clk 0:02:22]} 13... exd5 {[%clk 0:02:15.5]} 14. cxd5
{[%clk 0:02:22]} 14... Nb4 {[%clk 0:02:12.2]} 15. Qc4 {[%clk 0:02:07.6]} 15...
Bd6 {[%clk 0:02:06.7]} 16. Bxd6 {[%clk 0:01:51.3]} 16... Qxd6 {[%clk 0:02:08.6]}
17. Ne2 {[%clk 0:01:48]} 17... Rac8 {[%clk 0:02:04.1]} 18. Nf4 {[%clk
0:01:44.3]} 18... Bf7 {[%clk 0:02:01]} 19. Ne6 {[%clk 0:01:24.6]} 19... Rfe8
{[%clk 0:01:52.5]} 20. Nd4 {[%clk 0:00:58.5]} 20... g6 {[%clk 0:01:36.9]} 21.
Qc5 {[%clk 0:00:52.9]} 21... Bxd5 {[%clk 0:01:15.7]} 22. Qxd6 {[%clk 0:00:48.3]}
22... cxd6 {[%clk 0:01:17.6]} 23. a3 {[%clk 0:00:43.5]} 23... Nd3 {[%clk
0:01:15.4]} 24. Rb1 {[%clk 0:00:42.7]} 24... Rc7 {[%clk 0:00:57.6]} 25. b4
{[%clk 0:00:39.6]} 25... Rc3 {[%clk 0:00:48.5]} 26. a4 {[%clk 0:00:40.5]} 26...
Rec8 {[%clk 0:00:46.4]} 27. b5 {[%clk 0:00:36.7]} 27... a5 {[%clk 0:00:44.4]}
28. b6 {[%clk 0:00:31.5]} 28... Nb4 {[%clk 0:00:39.9]} 29. Nb5 {[%clk
0:00:24.6]} 29... Rc2 {[%clk 0:00:40.8]} 30. Nb3 {[%clk 0:00:24.4]} 30... Bc4
{[%clk 0:00:35.5]} 31. Nxd6 {[%clk 0:00:16.4]} 31... Bxf1 {[%clk 0:00:35.5]} 32.
Nxc8 {[%clk 0:00:17.5]} 32... Bd3 {[%clk 0:00:33.7]} 33. Nd6 {[%clk 0:00:16.1]}
33... Rc6 {[%clk 0:00:32.1]} 34. Rc1 {[%clk 0:00:12.6]} 34... Rxd6 {[%clk
0:00:32.2]} 35. Nxa5 {[%clk 0:00:13.7]} 35... Ba6 {[%clk 0:00:27.1]} 36. h3
{[%clk 0:00:11.6]} 36... Rxb6 {[%clk 0:00:24.6]} 37. Rc8+ {[%clk 0:00:12.5]}
37... Kg7 {[%clk 0:00:25.2]} 38. Rc7+ {[%clk 0:00:14.2]} 38... Kh6 {[%clk
0:00:26.4]} 39. Rd7 {[%clk 0:00:15.8]} 39... Nd3 {[%clk 0:00:26]} 40. f3 {[%clk
0:00:15.9]} 40... exf3 {[%clk 0:00:21.6]} 41. gxf3 {[%clk 0:00:14.7]} 41... Rb2
{[%clk 0:00:22.5]} 42. Nxb7 {[%clk 0:00:12.7]} 42... Ne5 {[%clk 0:00:21.4]} 43.
Rd5 {[%clk 0:00:09.2]} 43... Nxf3+ {[%clk 0:00:22.3]} 0-1

[Event "*** Titled Tuesday Blitz"]
[Site "Chess.com"]
[Date "2018.08.07"]
[Round "6"]
[White "morphy1984"]
[Black "TijanaBlagojevic"]
[Result "0-1"]
[WhiteElo "2496"]
[BlackElo "2381"]
[TimeControl "180+2"]
[EndTime "14:18:22 PDT"]
[Termination "TijanaBlagojevic won by resignation"]

1. e4 {[%clk 0:02:57.6]} 1... d6 {[%clk 0:03:00]} 2. d4 {[%clk 0:02:58.1]} 2...
Nf6 {[%clk 0:03:01.4]} 3. Nc3 {[%clk 0:02:58.4]} 3... e5 {[%clk 0:03:02.6]} 4.
Nf3 {[%clk 0:02:58.9]} 4... Nbd7 {[%clk 0:03:03.4]} 5. Bc4 {[%clk 0:02:59]} 5...
Be7 {[%clk 0:03:04.1]} 6. a4 {[%clk 0:02:56.7]} 6... O-O {[%clk 0:03:03.8]} 7.
O-O {[%clk 0:02:56.4]} 7... b6 {[%clk 0:03:04.8]} 8. Re1 {[%clk 0:02:38]} 8...
Bb7 {[%clk 0:03:04.1]} 9. h3 {[%clk 0:02:38.2]} 9... a6 {[%clk 0:03:01.6]} 10.
d5 {[%clk 0:02:28.5]} 10... c6 {[%clk 0:02:52.7]} 11. dxc6 {[%clk 0:02:24.2]}
11... Bxc6 {[%clk 0:02:54.6]} 12. Nd5 {[%clk 0:02:24.7]} 12... Bxd5 {[%clk
0:02:50.3]} 13. Bxd5 {[%clk 0:02:25.3]} 13... Nxd5 {[%clk 0:02:50.8]} 14. Qxd5
{[%clk 0:02:25.2]} 14... Nf6 {[%clk 0:02:51.8]} 15. Qb3 {[%clk 0:02:24.3]} 15...
Qc7 {[%clk 0:02:52]} 16. c3 {[%clk 0:02:17.8]} 16... Nd7 {[%clk 0:02:50.1]} 17.
Be3 {[%clk 0:02:12]} 17... Rab8 {[%clk 0:02:50.5]} 18. Rad1 {[%clk 0:02:09.9]}
18... b5 {[%clk 0:02:51.3]} 19. axb5 {[%clk 0:02:09.3]} 19... Rxb5 {[%clk
0:02:53.2]} 20. Qa2 {[%clk 0:02:05.4]} 20... Rfb8 {[%clk 0:02:52.2]} 21. Bc1
{[%clk 0:01:54.1]} 21... a5 {[%clk 0:02:44.9]} 22. Rd5 {[%clk 0:01:51.2]} 22...
Nf6 {[%clk 0:02:38.3]} 23. Rxb5 {[%clk 0:01:50.2]} 23... Rxb5 {[%clk 0:02:40.2]}
24. Bg5 {[%clk 0:01:36.6]} 24... Qb7 {[%clk 0:02:32.6]} 25. Bxf6 {[%clk
0:01:31.9]} 25... Bxf6 {[%clk 0:02:34.5]} 26. Re2 {[%clk 0:01:32.4]} 26... d5
{[%clk 0:02:29.9]} 27. exd5 {[%clk 0:01:32]} 27... Rxd5 {[%clk 0:02:31.8]} 28.
Qa4 {[%clk 0:01:26.3]} 28... g6 {[%clk 0:02:14.9]} 29. Qc4 {[%clk 0:00:39.5]}
29... Kg7 {[%clk 0:02:09.9]} 30. Nd2 {[%clk 0:00:26.9]} 30... Qd7 {[%clk
0:01:49.5]} 31. Ne4 {[%clk 0:00:25.4]} 31... Rd1+ {[%clk 0:01:50.1]} 32. Kh2
{[%clk 0:00:26.1]} 32... Be7 {[%clk 0:01:51.6]} 33. Ng3 {[%clk 0:00:16.8]} 33...
f6 {[%clk 0:01:45]} 34. Ne4 {[%clk 0:00:13.7]} 34... h5 {[%clk 0:01:39.4]} 35.
Nc5 {[%clk 0:00:14.3]} 35... Qd5 {[%clk 0:01:36.7]} 36. Qxd5 {[%clk 0:00:10.5]}
36... Rxd5 {[%clk 0:01:38.6]} 37. Ne4 {[%clk 0:00:09.2]} 37... Rb5 {[%clk
0:01:39.3]} 38. Rc2 {[%clk 0:00:09.6]} 38... f5 {[%clk 0:01:39.9]} 39. Nd2
{[%clk 0:00:09.6]} 39... Bf6 {[%clk 0:01:41.3]} 40. Kg1 {[%clk 0:00:10.2]} 40...
e4 {[%clk 0:01:42.4]} 41. Kf1 {[%clk 0:00:11.3]} 41... a4 {[%clk 0:01:43.5]} 42.
Nc4 {[%clk 0:00:11.4]} 42... Rb3 {[%clk 0:01:40]} 43. Ke2 {[%clk 0:00:11.1]}
43... g5 {[%clk 0:01:31.6]} 44. Ne3 {[%clk 0:00:11.2]} 44... Kg6 {[%clk
0:01:32.2]} 45. Nd5 {[%clk 0:00:11.3]} 45... Be5 {[%clk 0:01:33.1]} 46. Kd2
{[%clk 0:00:09.4]} 46... f4 {[%clk 0:01:34.2]} 47. Ke2 {[%clk 0:00:06.5]} 47...
Kf5 {[%clk 0:01:31.1]} 48. Ne7+ {[%clk 0:00:06.7]} 48... Ke6 {[%clk 0:01:32]}
49. Nc6 {[%clk 0:00:07.7]} 49... a3 {[%clk 0:01:29]} 50. bxa3 {[%clk 0:00:05.9]}
50... Bxc3 {[%clk 0:01:24.9]} 51. a4 {[%clk 0:00:05.3]} 51... Bf6 {[%clk
0:01:21.2]} 52. a5 {[%clk 0:00:05.8]} 52... Ra3 {[%clk 0:01:20.8]} 53. Rc5
{[%clk 0:00:03.9]} 53... f3+ {[%clk 0:01:20.1]} 54. gxf3 {[%clk 0:00:04.6]}
54... exf3+ {[%clk 0:01:22]} 55. Ke1 {[%clk 0:00:05.2]} 55... Kd6 {[%clk
0:01:17.8]} 56. Rc4 {[%clk 0:00:05.4]} 56... Kd5 {[%clk 0:01:16.1]} 57. Rc2
{[%clk 0:00:05.6]} 57... Bc3+ {[%clk 0:01:15.5]} 58. Kd1 {[%clk 0:00:05.6]}
58... Ra1+ {[%clk 0:01:15.1]} 0-1